[Event "Titled Tuesday Blitz February 22 Early 2022"]
[White "Kobo, Ori"]
[Black "Carlsson, Ludvig"]
[WhiteFideId "2812320"]
[BlackFideId "1727010"]
[WhiteElo "2420"]
[BlackElo "2178"]
[Result "1/2-1/2"]
[Round "07"]
[TimeControl "180+1"]
[Date "2022.02.22"]
[WhiteClock "0:00:09"]
[BlackClock "0:00:21"]

1. Nc3 {[%clk 0:03:00]}  e5 {[%clk 0:02:59]} 2. Nf3 {[%clk 0:03:00]}  Nc6 {[%clk 0:02:58]} 3. d4 {[%clk 0:03:00]}  exd4 {[%clk 0:02:55]} 4. Nxd4 {[%clk 0:03:01]}  Nf6 {[%clk 0:02:54]} 5. Bg5 {[%clk 0:03:01]}  Bb4 {[%clk 0:02:53]} 6. Nxc6 {[%clk 0:03:01]}  bxc6 {[%clk 0:02:53]} 7. Qd4 {[%clk 0:03:00]}  Qe7 {[%clk 0:02:46]} 8. a3 {[%clk 0:02:49]}  Bxc3+ {[%clk 0:02:44]} 9. Qxc3 {[%clk 0:02:41]}  O-O {[%clk 0:02:38]} 10. Bxf6 {[%clk 0:02:36]}  Qxf6 {[%clk 0:02:39]} 11. Qxf6 {[%clk 0:02:36]}  gxf6 {[%clk 0:02:40]} 12. O-O-O {[%clk 0:02:32]}  d6 {[%clk 0:02:39]} 13. e3 {[%clk 0:02:30]}  Bf5 {[%clk 0:02:37]} 14. Bd3 {[%clk 0:02:29]}  Bg6 {[%clk 0:02:37]} 15. h4 {[%clk 0:02:28]}  Rfe8 {[%clk 0:02:36]} 16. h5 {[%clk 0:02:26]}  Be4 {[%clk 0:02:35]} 17. Rh4 {[%clk 0:02:23]}  f5 {[%clk 0:02:35]} 18. Rf4 {[%clk 0:02:08]}  Bxd3 {[%clk 0:02:29]} 19. cxd3 {[%clk 0:01:56]}  Re5 {[%clk 0:02:30]} 20. d4 {[%clk 0:01:56]}  Rd5 {[%clk 0:02:29]} 21. Rd2 {[%clk 0:01:52]}  Re8 {[%clk 0:02:26]} 22. Rc2 {[%clk 0:01:49]}  c5 {[%clk 0:02:27]} 23. dxc5 {[%clk 0:01:49]}  dxc5 {[%clk 0:02:26]} 24. Rd2 {[%clk 0:01:34]}  Red8 {[%clk 0:02:20]} 25. Rxd5 {[%clk 0:01:34]}  Rxd5 {[%clk 0:02:21]} 26. Ra4 {[%clk 0:01:30]}  f4 {[%clk 0:02:14]} 27. Rxf4 {[%clk 0:01:14]}  Rxh5 {[%clk 0:02:13]} 28. Kd2 {[%clk 0:01:10]}  Kf8 {[%clk 0:02:11]} 29. g3 {[%clk 0:01:09]}  Rh6 {[%clk 0:02:02]} 30. Rc4 {[%clk 0:01:06]}  Rf6 {[%clk 0:01:59]} 31. f4 {[%clk 0:00:54]}  Rb6 {[%clk 0:01:55]} 32. Kc2 {[%clk 0:00:39]}  Rg6 {[%clk 0:01:53]} 33. Rxc5 {[%clk 0:00:40]}  Rxg3 {[%clk 0:01:53]} 34. Kd3 {[%clk 0:00:39]}  Rg2 {[%clk 0:01:50]} 35. b4 {[%clk 0:00:36]}  Ra2 {[%clk 0:01:46]} 36. Ra5 {[%clk 0:00:37]}  h5 {[%clk 0:01:46]} 37. Rxh5 {[%clk 0:00:25]}  Rxa3+ {[%clk 0:01:46]} 38. Kd4 {[%clk 0:00:23]}  Rb3 {[%clk 0:01:42]} 39. b5 {[%clk 0:00:19]}  Ra3 {[%clk 0:01:37]} 40. Rc5 {[%clk 0:00:18]}  a6 {[%clk 0:01:28]} 41. bxa6 {[%clk 0:00:17]}  Rxa6 {[%clk 0:01:29]} 42. Rxc7 {[%clk 0:00:17]}  Rd6+ {[%clk 0:01:24]} 43. Ke4 {[%clk 0:00:16]}  Re6+ {[%clk 0:01:25]} 44. Kf3 {[%clk 0:00:17]}  Ra6 {[%clk 0:01:24]} 45. Rc3 {[%clk 0:00:17]}  Ke7 {[%clk 0:01:23]} 46. e4 {[%clk 0:00:17]}  Ra4 {[%clk 0:01:17]} 47. Rc7+ {[%clk 0:00:14]}  Ke8 {[%clk 0:01:13]} 48. e5 {[%clk 0:00:11]}  f6 {[%clk 0:00:53]} 49. e6 {[%clk 0:00:06]}  f5 {[%clk 0:00:50]} 50. Rf7 {[%clk 0:00:03]}  Re4 {[%clk 0:00:45]} 51. Rxf5 {[%clk 0:00:03]}  Rxe6 {[%clk 0:00:45]} 52. Ra5 {[%clk 0:00:03]}  Kf7 {[%clk 0:00:42]} 53. f5 {[%clk 0:00:03]}  Rh6 {[%clk 0:00:41]} 54. Kf4 {[%clk 0:00:04]}  Rb6 {[%clk 0:00:39]} 55. Ra7+ {[%clk 0:00:03]}  Kf8 {[%clk 0:00:39]} 56. Kg5 {[%clk 0:00:03]}  Rc6 {[%clk 0:00:40]} 57. Ra8+ {[%clk 0:00:03]}  Kg7 {[%clk 0:00:38]} 58. Ra7+ {[%clk 0:00:04]}  Kf8 {[%clk 0:00:37]} 59. Rb7 {[%clk 0:00:04]}  Ra6 {[%clk 0:00:37]} 60. Rc7 {[%clk 0:00:05]}  Rb6 {[%clk 0:00:37]} 61. Rd7 {[%clk 0:00:05]}  Ra6 {[%clk 0:00:37]} 62. Rh7 {[%clk 0:00:05]}  Rb6 {[%clk 0:00:37]} 63. f6 {[%clk 0:00:06]}  Rb1 {[%clk 0:00:36]} 64. Rh8+ {[%clk 0:00:06]}  Kf7 {[%clk 0:00:36]} 65. Rh7+ {[%clk 0:00:06]}  Kg8 {[%clk 0:00:36]} 66. Rc7 {[%clk 0:00:07]}  Rg1+ {[%clk 0:00:35]} 67. Kf5 {[%clk 0:00:07]}  Rf1+ {[%clk 0:00:35]} 68. Kg6 {[%clk 0:00:08]}  Rg1+ {[%clk 0:00:35]} 69. Kf5 {[%clk 0:00:08]}  Rf1+ {[%clk 0:00:35]} 70. Ke6 {[%clk 0:00:09]}  Re1+ {[%clk 0:00:35]} 71. Kd6 {[%clk 0:00:09]}  Kf8 {[%clk 0:00:26]} 72. f7 {[%clk 0:00:09]}  Re2 {[%clk 0:00:23]} 73. Kd5 {[%clk 0:00:09]}  Re1 {[%clk 0:00:22]} 74. Kd6 {[%clk 0:00:09]}  Re2 {[%clk 0:00:23]} 75. Kd5 {[%clk 0:00:09]}  Re1 {[%clk 0:00:23]} 76. Kd4 {[%clk 0:00:09]}  Rf1 {[%clk 0:00:22]} 77. Ke3 {[%clk 0:00:09]}  Rf6 {[%clk 0:00:20]} 78. Ke4 {[%clk 0:00:09]}  Rf2 {[%clk 0:00:20]} 79. Ke5 {[%clk 0:00:09]}  Rxf7 {[%clk 0:00:20]} 80. Rxf7+ {[%clk 0:00:09]}  Kxf7 {[%clk 0:00:21]} 1/2-1/2


[Site "https://www.chess.com"]

[Event "Titled Tuesday Blitz February 22 Early 2022"]
[White "Kostiukov, Alexandr"]
[Black "Ferreira, Vitor Hugo Vieira"]
[WhiteFideId "14108100"]
[BlackFideId "2119765"]
[WhiteElo "2202"]
[BlackElo "2216"]
[Result "1-0"]
[Round "07"]
[TimeControl "180+1"]
[Date "2022.02.22"]
[WhiteClock "0:02:26"]
[BlackClock "0:02:20"]

1. g3 {[%clk 0:03:00]}  Nf6 {[%clk 0:02:59]} 2. Bg2 {[%clk 0:03:01]}  d5 {[%clk 0:02:58]} 3. d3 {[%clk 0:03:01]}  c6 {[%clk 0:02:56]} 4. e4 {[%clk 0:03:01]}  dxe4 {[%clk 0:02:56]} 5. dxe4 {[%clk 0:03:02]}  Qxd1+ {[%clk 0:02:56]} 6. Kxd1 {[%clk 0:03:03]}  e5 {[%clk 0:02:57]} 7. f3 {[%clk 0:03:03]}  Be6 {[%clk 0:02:56]} 8. Be3 {[%clk 0:03:03]}  Nbd7 {[%clk 0:02:56]} 9. Nd2 {[%clk 0:03:04]}  O-O-O {[%clk 0:02:51]} 10. Bh3 {[%clk 0:03:03]}  Bxh3 {[%clk 0:02:50]} 11. Nxh3 {[%clk 0:03:04]}  h6 {[%clk 0:02:50]} 12. Ke2 {[%clk 0:03:04]}  a6 {[%clk 0:02:45]} 13. c3 {[%clk 0:02:58]}  Nc5 {[%clk 0:02:45]} 14. Nc4 {[%clk 0:02:50]}  Nfd7 {[%clk 0:02:37]} 15. a4 {[%clk 0:02:47]}  Be7 {[%clk 0:02:35]} 16. b4 {[%clk 0:02:46]}  Ne6 {[%clk 0:02:33]} 17. Nf2 {[%clk 0:02:44]}  Rhf8 {[%clk 0:02:28]} 18. Rhd1 {[%clk 0:02:42]}  f5 {[%clk 0:02:28]} 19. Nd6+ {[%clk 0:02:41]}  Bxd6 {[%clk 0:02:28]} 20. Rxd6 {[%clk 0:02:41]}  Rde8 {[%clk 0:02:26]} 21. exf5 {[%clk 0:02:40]}  Rxf5 {[%clk 0:02:25]} 22. Ne4 {[%clk 0:02:40]}  Ref8 {[%clk 0:02:24]} 23. Rxe6 {[%clk 0:02:36]}  Rxf3 {[%clk 0:02:24]} 24. Bf4 {[%clk 0:02:27]}  exf4 {[%clk 0:02:21]} 25. Kxf3 {[%clk 0:02:27]}  fxg3+ {[%clk 0:02:22]} 26. Kxg3 {[%clk 0:02:27]}  Rf5 {[%clk 0:02:19]} 27. Nd6+ {[%clk 0:02:25]}  Kc7 {[%clk 0:02:20]} 28. Nxf5 {[%clk 0:02:26]} 1-0


[Site "https://www.chess.com"]

[Event "Titled Tuesday Blitz February 22 Early 2022"]
[White "Kozak, Antoni"]
[Black "Garagulya, Konstantin"]
[WhiteFideId "21832030"]
[BlackFideId "4128931"]
[WhiteElo "2232"]
[BlackElo "2329"]
[Result "1-0"]
[Round "07"]
[TimeControl "180+1"]
[Date "2022.02.22"]
[WhiteClock "0:00:54"]
[BlackClock "0:00:33"]

1. d4 {[%clk 0:03:00]}  Nf6 {[%clk 0:02:55]} 2. Bf4 {[%clk 0:02:57]}  e6 {[%clk 0:02:55]} 3. e3 {[%clk 0:02:57]}  c5 {[%clk 0:02:55]} 4. c3 {[%clk 0:02:57]}  d5 {[%clk 0:02:54]} 5. Nd2 {[%clk 0:02:56]}  Bd6 {[%clk 0:02:54]} 6. Bg3 {[%clk 0:02:52]}  Nc6 {[%clk 0:02:50]} 7. Ngf3 {[%clk 0:02:49]}  O-O {[%clk 0:02:47]} 8. Bd3 {[%clk 0:02:48]}  Qe7 {[%clk 0:02:41]} 9. Ne5 {[%clk 0:02:47]}  Nd7 {[%clk 0:02:41]} 10. Nxd7 {[%clk 0:02:33]}  Bxd7 {[%clk 0:02:40]} 11. Bxd6 {[%clk 0:02:30]}  Qxd6 {[%clk 0:02:40]} 12. dxc5 {[%clk 0:02:31]}  Qxc5 {[%clk 0:02:39]} 13. Bxh7+ {[%clk 0:02:31]}  Kxh7 {[%clk 0:02:28]} 14. Qh5+ {[%clk 0:02:30]}  Kg8 {[%clk 0:02:27]} 15. Ne4 {[%clk 0:02:31]}  Qc4 {[%clk 0:01:19]} 16. Ng5 {[%clk 0:02:29]}  Qd3 {[%clk 0:01:20]} 17. e4 {[%clk 0:02:30]}  Rfd8 {[%clk 0:01:12]} 18. Qxf7+ {[%clk 0:02:28]}  Kh8 {[%clk 0:01:11]} 19. Rd1 {[%clk 0:01:28]}  Qc2 {[%clk 0:01:05]} 20. O-O {[%clk 0:00:58]}  dxe4 {[%clk 0:00:32]} 21. Qh5+ {[%clk 0:00:52]}  Kg8 {[%clk 0:00:32]} 22. Qh7+ {[%clk 0:00:53]}  Kf8 {[%clk 0:00:32]} 23. Qh8+ {[%clk 0:00:54]}  Ke7 {[%clk 0:00:32]} 24. Qxg7+ {[%clk 0:00:54]}  Ke8 {[%clk 0:00:33]} 25. Qf7# {[%clk 0:00:54]} 1-0


[Site "https://www.chess.com"]

[Event "Titled Tuesday Blitz February 22 Early 2022"]
[White "Krzywda, Andrzej"]
[Black "Shtyka, Sergey"]
[WhiteFideId "1114565"]
[BlackFideId "4138465"]
[WhiteElo "2098"]
[BlackElo "2014"]
[Result "0-1"]
[Round "07"]
[TimeControl "180+1"]
[Date "2022.02.22"]
[WhiteClock "0:00:01"]
[BlackClock "0:00:13"]

1. e4 {[%clk 0:03:00]}  c5 {[%clk 0:02:59]} 2. Nc3 {[%clk 0:02:59]}  Nc6 {[%clk 0:02:59]} 3. Bb5 {[%clk 0:02:57]}  g6 {[%clk 0:02:54]} 4. Bxc6 {[%clk 0:02:56]}  dxc6 {[%clk 0:02:55]} 5. d3 {[%clk 0:02:57]}  Bg7 {[%clk 0:02:55]} 6. f4 {[%clk 0:02:58]}  Nf6 {[%clk 0:02:49]} 7. Nf3 {[%clk 0:02:58]}  O-O {[%clk 0:02:49]} 8. O-O {[%clk 0:02:59]}  b6 {[%clk 0:02:47]} 9. Qe1 {[%clk 0:02:56]}  Ba6 {[%clk 0:02:45]} 10. Ne5 {[%clk 0:02:51]}  Qc7 {[%clk 0:02:42]} 11. Qh4 {[%clk 0:02:47]}  Rad8 {[%clk 0:02:23]} 12. b3 {[%clk 0:02:41]}  Rfe8 {[%clk 0:02:15]} 13. Bb2 {[%clk 0:02:38]}  Nd7 {[%clk 0:02:15]} 14. Nf3 {[%clk 0:02:26]}  Nf8 {[%clk 0:02:07]} 15. Rae1 {[%clk 0:02:23]}  Ne6 {[%clk 0:02:06]} 16. f5 {[%clk 0:02:21]}  Nd4 {[%clk 0:02:06]} 17. Ng5 {[%clk 0:02:08]}  h5 {[%clk 0:01:57]} 18. Qf2 {[%clk 0:01:44]}  f6 {[%clk 0:01:44]} 19. Nf3 {[%clk 0:01:37]}  g5 {[%clk 0:01:30]} 20. Nxd4 {[%clk 0:01:32]}  cxd4 {[%clk 0:01:29]} 21. Ne2 {[%clk 0:01:32]}  c5 {[%clk 0:01:27]} 22. h4 {[%clk 0:01:24]}  Kf7 {[%clk 0:01:04]} 23. hxg5 {[%clk 0:01:17]}  fxg5 {[%clk 0:01:04]} 24. Bc1 {[%clk 0:01:18]}  Bf6 {[%clk 0:00:59]} 25. Qf3 {[%clk 0:00:59]}  Rh8 {[%clk 0:00:56]} 26. Ng3 {[%clk 0:00:57]}  g4 {[%clk 0:00:49]} 27. Qf2 {[%clk 0:00:52]}  Be5 {[%clk 0:00:47]} 28. Bf4 {[%clk 0:00:51]}  h4 {[%clk 0:00:44]} 29. Ne2 {[%clk 0:00:44]}  Rdg8 {[%clk 0:00:42]} 30. Bxe5 {[%clk 0:00:39]}  Qxe5 {[%clk 0:00:42]} 31. Qf4 {[%clk 0:00:40]}  Kf6 {[%clk 0:00:36]} 32. Qxe5+ {[%clk 0:00:39]}  Kxe5 {[%clk 0:00:37]} 33. Nf4 {[%clk 0:00:39]}  Rh7 {[%clk 0:00:28]} 34. Ng6+ {[%clk 0:00:35]}  Kd6 {[%clk 0:00:28]} 35. e5+ {[%clk 0:00:34]}  Kd7 {[%clk 0:00:28]} 36. f6 {[%clk 0:00:25]}  Rxg6 {[%clk 0:00:23]} 37. f7 {[%clk 0:00:25]}  Rh8 {[%clk 0:00:22]} 38. f8=Q {[%clk 0:00:22]}  Rxf8 {[%clk 0:00:22]} 39. Rxf8 {[%clk 0:00:23]}  Bb7 {[%clk 0:00:21]} 40. Rf4 {[%clk 0:00:10]}  h3 {[%clk 0:00:21]} 41. g3 {[%clk 0:00:05]}  h2+ {[%clk 0:00:19]} 42. Kxh2 {[%clk 0:00:06]}  Rh6+ {[%clk 0:00:19]} 43. Kg1 {[%clk 0:00:06]}  Rh1+ {[%clk 0:00:19]} 44. Kf2 {[%clk 0:00:07]}  Rh2+ {[%clk 0:00:19]} 45. Kf1 {[%clk 0:00:06]}  Bf3 {[%clk 0:00:16]} 46. e6+ {[%clk 0:00:04]}  Kd6 {[%clk 0:00:16]} 47. Kg1 {[%clk 0:00:02]}  Rg2+ {[%clk 0:00:15]} 48. Kf1 {[%clk 0:00:03]}  Rxc2 {[%clk 0:00:15]} 49. Rxf3 {[%clk 0:00:01]}  gxf3 {[%clk 0:00:15]} 50. g4 {[%clk 0:00:02]}  Rg2 {[%clk 0:00:14]} 51. g5 {[%clk 0:00:02]}  Rxa2 {[%clk 0:00:13]} 52. g6 {[%clk 0:00:01]}  Rg2 {[%clk 0:00:13]} 53. Ra1 {[%clk 0:00:02]}  a5 {[%clk 0:00:13]} 54. Rc1 {[%clk 0:00:01]}  Rxg6 {[%clk 0:00:12]} 55. Kf2 {[%clk 0:00:02]}  Rf6 {[%clk 0:00:13]} 56. Rh1 {[%clk 0:00:02]}  Kxe6 {[%clk 0:00:13]} 57. Rh8 {[%clk 0:00:03]}  Kd6 {[%clk 0:00:13]} 58. Rb8 {[%clk 0:00:04]}  Kc7 {[%clk 0:00:13]} 59. Re8 {[%clk 0:00:04]}  Rf7 {[%clk 0:00:12]} 60. Ra8 {[%clk 0:00:04]}  Kc6 {[%clk 0:00:12]} 61. Rb8 {[%clk 0:00:03]}  Kb5 {[%clk 0:00:12]} 62. Rb7 {[%clk 0:00:03]}  Rf6 {[%clk 0:00:12]} 63. Rxe7 {[%clk 0:00:02]}  Kb4 {[%clk 0:00:13]} 64. Rb7 {[%clk 0:00:02]}  Kxb3 {[%clk 0:00:13]} 65. Rb8 {[%clk 0:00:02]}  Kc3 {[%clk 0:00:13]} 66. Ra8 {[%clk 0:00:01]}  Kxd3 {[%clk 0:00:13]} 0-1


[Site "https://www.chess.com"]

[Event "Titled Tuesday Blitz February 22 Early 2022"]
[White "Lauridsen, Jesper Morch"]
[Black "Purtseladze, Maka"]
[WhiteFideId "1401890"]
[BlackFideId "13602659"]
[WhiteElo "2284"]
[BlackElo "2192"]
[Result "1-0"]
[Round "07"]
[TimeControl "180+1"]
[Date "2022.02.22"]
[WhiteClock "0:00:49"]
[BlackClock "0:00:47"]

1. e4 {[%clk 0:03:00]}  c6 {[%clk 0:02:56]} 2. d4 {[%clk 0:03:00]}  d5 {[%clk 0:02:57]} 3. exd5 {[%clk 0:02:59]}  cxd5 {[%clk 0:02:57]} 4. c4 {[%clk 0:02:59]}  Nf6 {[%clk 0:02:56]} 5. Nc3 {[%clk 0:02:59]}  Nc6 {[%clk 0:02:56]} 6. Nf3 {[%clk 0:02:59]}  Be6 {[%clk 0:02:54]} 7. c5 {[%clk 0:02:49]}  g6 {[%clk 0:02:53]} 8. Bb5 {[%clk 0:02:48]}  Bg7 {[%clk 0:02:54]} 9. Ne5 {[%clk 0:02:47]}  Bd7 {[%clk 0:02:53]} 10. Bxc6 {[%clk 0:02:45]}  Bxc6 {[%clk 0:02:49]} 11. O-O {[%clk 0:02:40]}  Nd7 {[%clk 0:02:47]} 12. Nf3 {[%clk 0:02:23]}  O-O {[%clk 0:02:42]} 13. Re1 {[%clk 0:02:23]}  e5 {[%clk 0:02:33]} 14. dxe5 {[%clk 0:02:16]}  Nxc5 {[%clk 0:02:31]} 15. Bg5 {[%clk 0:02:07]}  Qd7 {[%clk 0:02:17]} 16. Qd2 {[%clk 0:02:05]}  Rfe8 {[%clk 0:01:41]} 17. Rad1 {[%clk 0:01:58]}  d4 {[%clk 0:01:32]} 18. Qxd4 {[%clk 0:01:40]}  Bxf3 {[%clk 0:01:21]} 19. Qxd7 {[%clk 0:01:32]}  Nxd7 {[%clk 0:01:22]} 20. Rxd7 {[%clk 0:01:25]}  Bxe5 {[%clk 0:01:14]} 21. gxf3 {[%clk 0:01:19]}  Bxh2+ {[%clk 0:01:09]} 22. Kf1 {[%clk 0:01:19]}  Rxe1+ {[%clk 0:00:58]} 23. Kxe1 {[%clk 0:01:18]}  b6 {[%clk 0:00:58]} 24. f4 {[%clk 0:01:15]}  Kg7 {[%clk 0:00:58]} 25. Nd5 {[%clk 0:01:13]}  h6 {[%clk 0:00:48]} 26. Bf6+ {[%clk 0:01:12]}  Kf8 {[%clk 0:00:48]} 27. Kf1 {[%clk 0:01:05]}  g5 {[%clk 0:00:48]} 28. Kg2 {[%clk 0:00:57]}  Bxf4 {[%clk 0:00:45]} 29. Nxf4 {[%clk 0:00:57]}  gxf4 {[%clk 0:00:45]} 30. Kf3 {[%clk 0:00:56]}  Kg8 {[%clk 0:00:44]} 31. Rd8+ {[%clk 0:00:53]}  Rxd8 {[%clk 0:00:45]} 32. Bxd8 {[%clk 0:00:53]}  Kf8 {[%clk 0:00:45]} 33. Kxf4 {[%clk 0:00:52]}  Ke8 {[%clk 0:00:45]} 34. Bf6 {[%clk 0:00:50]}  Kd7 {[%clk 0:00:46]} 35. Bg7 {[%clk 0:00:50]}  Ke6 {[%clk 0:00:47]} 36. Bxh6 {[%clk 0:00:49]} 1-0


[Site "https://www.chess.com"]

[Event "Titled Tuesday Blitz February 22 Early 2022"]
[White "Lazavik, Denis"]
[Black "Timofeev, Artyom"]
[WhiteFideId "13515110"]
[BlackFideId "4140419"]
[WhiteElo "2436"]
[BlackElo "2583"]
[Result "1-0"]
[Round "07"]
[TimeControl "180+1"]
[Date "2022.02.22"]
[WhiteClock "0:00:18"]
[BlackClock "0:00:24"]

1. d4 {[%clk 0:03:00]}  d5 {[%clk 0:02:59]} 2. c4 {[%clk 0:02:59]}  dxc4 {[%clk 0:03:00]} 3. Nf3 {[%clk 0:02:58]}  Nf6 {[%clk 0:02:59]} 4. e3 {[%clk 0:02:58]}  e6 {[%clk 0:03:00]} 5. Bxc4 {[%clk 0:02:58]}  c5 {[%clk 0:03:00]} 6. O-O {[%clk 0:02:57]}  a6 {[%clk 0:03:01]} 7. dxc5 {[%clk 0:02:56]}  Bxc5 {[%clk 0:03:01]} 8. Qxd8+ {[%clk 0:02:50]}  Kxd8 {[%clk 0:03:00]} 9. Nc3 {[%clk 0:02:50]}  Ke7 {[%clk 0:02:59]} 10. Be2 {[%clk 0:02:49]}  Nbd7 {[%clk 0:02:52]} 11. Nd2 {[%clk 0:02:46]}  b6 {[%clk 0:02:48]} 12. Nc4 {[%clk 0:02:26]}  Bb7 {[%clk 0:02:40]} 13. Na4 {[%clk 0:02:21]}  b5 {[%clk 0:02:38]} 14. Nxc5 {[%clk 0:02:21]}  Nxc5 {[%clk 0:02:38]} 15. Na5 {[%clk 0:02:20]}  Bd5 {[%clk 0:02:36]} 16. f3 {[%clk 0:02:20]}  Rac8 {[%clk 0:02:25]} 17. e4 {[%clk 0:02:19]}  Ba8 {[%clk 0:02:24]} 18. b3 {[%clk 0:02:13]}  Nfd7 {[%clk 0:02:22]} 19. Be3 {[%clk 0:02:11]}  f5 {[%clk 0:02:20]} 20. exf5 {[%clk 0:02:06]}  exf5 {[%clk 0:02:20]} 21. a4 {[%clk 0:01:57]}  bxa4 {[%clk 0:02:04]} 22. b4 {[%clk 0:01:56]}  Ne6 {[%clk 0:02:01]} 23. Bxa6 {[%clk 0:01:49]}  Rc3 {[%clk 0:01:55]} 24. Bf2 {[%clk 0:01:43]}  Rb8 {[%clk 0:01:16]} 25. Rxa4 {[%clk 0:01:39]}  Kf7 {[%clk 0:01:14]} 26. Bc4 {[%clk 0:01:08]}  Nf6 {[%clk 0:01:14]} 27. Rd1 {[%clk 0:00:55]}  Rc8 {[%clk 0:01:07]} 28. b5 {[%clk 0:00:50]}  Bd5 {[%clk 0:01:01]} 29. Bxd5 {[%clk 0:00:42]}  Nxd5 {[%clk 0:01:01]} 30. Nc6 {[%clk 0:00:38]}  Ne3 {[%clk 0:00:41]} 31. Ra7+ {[%clk 0:00:33]}  Kf6 {[%clk 0:00:39]} 32. Re1 {[%clk 0:00:32]}  f4 {[%clk 0:00:39]} 33. h4 {[%clk 0:00:26]}  Nc5 {[%clk 0:00:35]} 34. Nb4 {[%clk 0:00:20]}  Rb3 {[%clk 0:00:25]} 35. Bxe3 {[%clk 0:00:19]}  fxe3 {[%clk 0:00:24]} 36. Nd5+ {[%clk 0:00:19]}  Kg6 {[%clk 0:00:24]} 37. Ne7+ {[%clk 0:00:18]} 1-0


[Site "https://www.chess.com"]

[Event "Titled Tuesday Blitz February 22 Early 2022"]
[White "Ljukin, Sergei"]
[Black "Samunenkov, Ihor"]
[WhiteFideId "14102200"]
[BlackFideId "14187086"]
[WhiteElo "2312"]
[BlackElo "2406"]
[Result "0-1"]
[Round "07"]
[TimeControl "180+1"]
[Date "2022.02.22"]
[WhiteClock "0:00:05"]
[BlackClock "0:00:05"]

1. e4 {[%clk 0:02:56]}  c6 {[%clk 0:02:59]} 2. d4 {[%clk 0:02:55]}  d5 {[%clk 0:03:00]} 3. e5 {[%clk 0:02:56]}  c5 {[%clk 0:03:00]} 4. Nf3 {[%clk 0:02:55]}  cxd4 {[%clk 0:02:59]} 5. Nxd4 {[%clk 0:02:54]}  Nc6 {[%clk 0:03:00]} 6. c4 {[%clk 0:02:55]}  e6 {[%clk 0:02:54]} 7. Nc3 {[%clk 0:02:53]}  Bc5 {[%clk 0:02:51]} 8. Nxc6 {[%clk 0:02:52]}  bxc6 {[%clk 0:02:52]} 9. Qg4 {[%clk 0:02:50]}  Kf8 {[%clk 0:02:23]} 10. Bd3 {[%clk 0:02:37]}  Ne7 {[%clk 0:02:20]} 11. O-O {[%clk 0:02:36]}  Ng6 {[%clk 0:02:10]} 12. Qg3 {[%clk 0:02:25]}  Bd4 {[%clk 0:01:58]} 13. Bxg6 {[%clk 0:02:16]}  hxg6 {[%clk 0:01:59]} 14. Rd1 {[%clk 0:01:59]}  Bb6 {[%clk 0:01:31]} 15. b3 {[%clk 0:01:40]}  Qh4 {[%clk 0:01:21]} 16. Ba3+ {[%clk 0:01:35]}  Ke8 {[%clk 0:01:11]} 17. Bd6 {[%clk 0:01:29]}  Ba6 {[%clk 0:00:59]} 18. c5 {[%clk 0:01:19]}  Qxg3 {[%clk 0:00:54]} 19. hxg3 {[%clk 0:01:18]}  Ba5 {[%clk 0:00:54]} 20. Rac1 {[%clk 0:01:09]}  Kd7 {[%clk 0:00:52]} 21. a3 {[%clk 0:01:08]}  Bd8 {[%clk 0:00:27]} 22. b4 {[%clk 0:01:04]}  Bc4 {[%clk 0:00:28]} 23. Rb1 {[%clk 0:00:56]}  Bc7 {[%clk 0:00:25]} 24. a4 {[%clk 0:00:43]}  Rhb8 {[%clk 0:00:24]} 25. b5 {[%clk 0:00:41]}  Rb7 {[%clk 0:00:21]} 26. Bxc7 {[%clk 0:00:18]}  Kxc7 {[%clk 0:00:21]} 27. Rb4 {[%clk 0:00:19]}  Rab8 {[%clk 0:00:16]} 28. Rdb1 {[%clk 0:00:18]}  Bd3 {[%clk 0:00:13]} 29. Rd1 {[%clk 0:00:14]}  Bc4 {[%clk 0:00:08]} 30. Rdb1 {[%clk 0:00:14]}  Kd7 {[%clk 0:00:06]} 31. f4 {[%clk 0:00:12]}  f6 {[%clk 0:00:04]} 32. b6 {[%clk 0:00:11]}  axb6 {[%clk 0:00:04]} 33. cxb6 {[%clk 0:00:12]}  c5 {[%clk 0:00:04]} 34. Rxc4 {[%clk 0:00:11]}  dxc4 {[%clk 0:00:04]} 35. a5 {[%clk 0:00:11]}  Kc6 {[%clk 0:00:04]} 36. Nb5 {[%clk 0:00:07]}  Ra8 {[%clk 0:00:03]} 37. Na7+ {[%clk 0:00:07]}  Raxa7 {[%clk 0:00:03]} 38. bxa7 {[%clk 0:00:06]}  Rxb1+ {[%clk 0:00:04]} 39. Kf2 {[%clk 0:00:05]}  Kb7 {[%clk 0:00:05]} 0-1


[Site "https://www.chess.com"]